[Event "14th Margaryan Memorial-IM 2024"]
[Site "Yerevan"]
[Date "2024.01.16"]
[Round "9.7"]
[White "Rostomyan, Mikayel"]
[Black "Hayrapetyan, Edgar"]
[Result "1/2-1/2"]
[ECO "D36"]
[WhiteElo "2294"]
[BlackElo "2233"]
[Annotator "RC"]
[PlyCount "55"]
[EventDate "2024.01.08"]
[EventType "tourn"]
[EventCountry "ARM"]
[SourceTitle "playchess.com"]
[Source "ChessBase"]
[SourceQuality "1"]
[TimeControl "40/5400+30:1800+30"]

1. d4 {[%emt 0:00:25]} Nf6 {[%emt 0:00:05]} 2. c4 {[%emt 0:00:19]} e6 {[%emt 0:00:04]} 3. Nc3 {[%emt 0:00:21]} d5 {[%emt 0:02:50]} 4. cxd5 {[%emt 0:03:46]} exd5 {[%emt 0:00:48]} 5. Bg5 {[%emt 0:00:21]} c6 {[%emt 0:02:24]} 6. e3 {[%emt 0:00:34]} Be7 {[%emt 0:01:00]} 7. Bd3 {[%emt 0:00:07]} O-O {[%emt 0:00:16]} 8. Qc2 {[%emt 0:00:16]} Nbd7 {[%emt 0:01:11]} 9. Nge2 {[%emt 0:00:32]} Re8 {[%emt 0:00:20]} 10. O-O {[%emt 0:02:25]} Nf8 {[%emt 0:03:51]} 11. Rae1 {[%emt 0:01:44]} g6 {[%emt 0:03:31]} 12. f3 {[%emt 0:02:17]} Ne6 {[%emt 0:00:14]} 13. Bh4 {[%emt 0:02:53]} Ng7 {[%emt 0:01:00]} 14. h3 {[%emt 0:02:27]} Nfh5 {[%emt 0:28:27]} 15. Bf2 {[%emt 0:06:37]} Bh4 {[%emt 0:05:21]} 16. g3 {[%emt 0:00:53]} Bg5 {[%emt 0:02:37]} 17. f4 {[%emt 0:06:14]} Bxh3 {[%emt 0:00:27]} 18. fxg5 {[%emt 0:00:15]} Qxg5 {[%emt 0:00:33]} 19. e4 {[%emt 0:04:29]} Rad8 {[%emt 0:11:51]} 20. Kh2 {[%emt 0:05:23]} Bxf1 {[%emt 0:06:40]} 21. Rxf1 {[%emt 0:00:16]} Ne6 {[%emt 0:00:11]} 22. Bg1 {[%emt 0:11:16]} Qg4 {[%emt 0:02:29]} 23. Be3 {[%emt 0:06:15]} Ng5 {[%emt 0:02:19]} 24. Bxg5 {[%emt 0:00:19]} Qxg5 {[%emt 0:00:01]} 25. Qc1 {[%emt 0:03:54]} Qxc1 {[%emt 0:01:27]} 26. Rxc1 {[%emt 0:00:10]} dxe4 {[%emt 0:02:04]} 27. Nxe4 {[%emt 0:01:41]} Kg7 {[%emt 0:01:20]} 28. Kg2 {[%emt 0:08:47]} 1/2-1/2

[Event "14th Margaryan Memorial-IM 2024"]
[Site "Yerevan"]
[Date "2024.01.16"]
[Round "9.8"]
[White "Ambartsumian, Tyhran"]
[Black "Sagradov Sahakyan, Alexander"]
[Result "0-1"]
[ECO "B40"]
[WhiteElo "2224"]
[BlackElo "1423"]
[Annotator "RC"]
[PlyCount "58"]
[EventDate "2024.01.08"]
[EventType "tourn"]
[EventCountry "ARM"]
[SourceTitle "playchess.com"]
[Source "ChessBase"]
[SourceQuality "1"]
[TimeControl "40/5400+30:1800+30"]

1. e4 {[%emt 0:00:13]} c5 {[%emt 0:00:07]} 2. Nf3 {[%emt 0:00:08]} e6 {[%emt 0:00:06]} 3. g3 {[%emt 0:00:04]} Nc6 {[%emt 0:01:12]} 4. Bg2 {[%emt 0:00:05]} d6 {[%emt 0:00:58]} 5. d4 {[%emt 0:00:33]} cxd4 {[%emt 0:01:44]} 6. Nxd4 {[%emt 0:00:14]} Nxd4 {[%emt 0:06:11]} 7. Qxd4 {[%emt 0:00:11]} Ne7 {[%emt 0:00:03]} 8. O-O {[%emt 0:11:27]} Nc6 {[%emt 0:00:15]} 9. Qe3 {[%emt 0:01:09]} Be7 {[%emt 1:24:24]} 10. Rd1 {[%emt 0:01:03]} O-O {[%emt 0:00:00]} 11. c4 {[%emt 0:00:55]} Qc7 {[%emt 0:00:00]} 12. Nc3 {[%emt 0:05:20]} a6 {[%emt 0:00:00]} 13. b3 {[%emt 0:00:31]} Rb8 {[%emt 0:00:00]} 14. Bb2 {[%emt 0:07:16]} Ne5 {[%emt 0:00:00]} 15. Rac1 {[%emt 0:02:22]} Bd7 {[%emt 0:00:00]} 16. h3 {[%emt 0:02:15]} Rfd8 {[%emt 0:00:00]} 17. Kh2 {[%emt 0:04:39]} Qa5 {[%emt 0:00:00]} 18. f4 {[%emt 0:03:18]} Ng6 {[%emt 0:00:00]} 19. a3 {[%emt 0:08:50]} Qc5 {[%emt 0:00:00]} 20. Qe2 {[%emt 0:03:53]} a5 {[%emt 0:00:00]} 21. a4 {[%emt 0:04:02]} Bf6 {[%emt 0:00:00]} 22. h4 {[%emt 0:01:23]} Bc6 {[%emt 0:00:00]} 23. Rd3 {[%emt 0:42:09]} Bxh4 {[%emt 0:00:00]} 24. gxh4 {[%emt 0:00:00]} Nxf4 {[%emt 0:00:00]} 25. Qd2 {[%emt 0:00:00]} Nxd3 26. Qxd3 {[%emt 0:00:00]} Qf2 {[%emt 0:00:00]} 27. Rc2 {[%emt 0:00:00]} Qxh4+ {[%emt 0:00:00]} 28. Bh3 {[%emt 0:00:00]} g6 {[%emt 0:00:00]} 29. Rf2 {[%emt 0:00:00]} Qxf2+ {[%emt 0:00:00]} 0-1

[Event "14th Margaryan Memorial-IM 2024"]
[Site "Yerevan"]
[Date "2024.01.16"]
[Round "9.9"]
[White "Putrenko, Kirill"]
[Black "Kaiyrbekov, Rustam"]
[Result "1-0"]
[ECO "A30"]
[WhiteElo "2353"]
[BlackElo "2295"]
[Annotator "TA"]
[PlyCount "116"]
[EventDate "2024.01.08"]
[EventType "tourn"]
[EventCountry "ARM"]
[SourceTitle "playchess.com"]
[Source "ChessBase"]
[SourceQuality "1"]
[TimeControl "40/5400+30:1800+30"]

{[%evp 16,116,40,37,36,49,53,41,41,47,51,52,62,0,82,50,56,20,52,-31,-39,-41,-12,-27,-26,-61,-10,-22,-26,-66,17,28,20,29,14,30,21,0,0,5,12,17,18,16,13,17,15,10,9,0,0,0,21,0,0,0,0,-12,-9,-8,-8,-4,0,0,0,7,95,96,97,100,104,89,132,133,161,0,0,0,0,0,0,0,0,0,0,0,29941,12793,29981,29982,29982,29983,29983,29984,29993,29994,29994,29995,29996,29997,29998,29999,29999]} 1. Nf3 {[%emt 0:00:06]} Nf6 {[%emt 0:00:49]} 2. c4 {[%emt 0:00:16]} c5 {[%emt 0:00:06]} 3. Nc3 {[%emt 0:00:07]} b6 {[%emt 0:00:07]} 4. g3 {[%emt 0:01:18]} Bb7 {[%emt 0:00:23]} 5. Bg2 {[%emt 0:00:02]} e6 {[%emt 0:00:19]} 6. O-O {[%emt 0:00:07]} d6 {[%emt 0:00:03]} 7. d4 {[%emt 0:00:24]} cxd4 8. Nxd4 {[%emt 0:00:03]} Bxg2 {[%emt 0:00:51]} 9. Kxg2 {[%emt 0:00:04]} Qc7 {[%emt 0:00:15] A30: Symmetrical English: Double Fianchetto and Hedgehog.} 10. Qd3 {[%emt 0:06:54]} a6 {[%emt 0:07:21]} 11. f4 {[%emt 0:03:15]} Nbd7 {[%emt 0:01:12] White is slightly better.} 12. b3 {[%emt 0:05:11] [#]} Be7 $146 {[%emt 0:01:48]} ({Predecessor:} 12... Rc8 13. Bb2 Qb7+ 14. Qf3 Qxf3+ 15. exf3 Be7 16. Rfe1 O-O 17. Rad1 Rfe8 18. Re2 g6 {½-½ Egger,T (2255)-Roemer,U (2300) BL2-Sued 8788 1987 [1]}) 13. Qf3 {[%emt 0:04:40]} Rc8 {[%emt 0:00:56][%cal Ob6b5]} 14. g4 {[%emt 0:05:18] White is more active.} (14. Bb2 $14) 14... g6 {[%emt 0:10:04]} (14... h6 $1 $11) 15. g5 $16 {[%emt 0:05:44]} Nh5 {[%emt 0:02:29][%cal Ob6b5]} 16. Bd2 {[%emt 0:05:50][%cal Of4f5]} O-O {[%emt 0:10:31][%cal Oh7h6] [#]} 17. f5 {[%emt 0:15:37]} Ne5 $15 {[%emt 0:00:24]} (17... exf5 18. Nxf5 (18. Nd5 Qd8 $16) 18... Qd8 19. Qg4 $16 (19. Nh6+ Kg7 $16)) 18. Qh3 {[%emt 0:00:14]} Qb7+ $1 {[%emt 0:00:47]} (18... exf5 19. Nxf5 gxf5 20. Nd5 $14) 19. Kg1 {[%emt 0:00:51]} (19. e4 $5 {[%cal Rf5e6]} exf5 20. Rxf5 $11) 19... d5 {[%emt 0:16:08]} 20. fxe6 {[%emt 0:12:35]} Bc5 {[%emt 0:02:47]} (20... dxc4 $15 21. Rad1 Bc5) 21. Be3 $1 $11 {[%emt 0:00:53]} dxc4 {[%emt 0:00:41]} 22. bxc4 {[%emt 0:03:37]} Nxc4 {[%emt 0:06:22]} ({Black should play} 22... Rfe8 $15 23. Nd5 fxe6 24. Nf6+ Nxf6 25. gxf6 Qf7) 23. Rxf7 {[%emt 0:04:29]} Rxf7 {[%emt 0:04:58]} 24. exf7+ {[%emt 0:00:02]} Kh8 $1 {[%emt 0:03:29] Hoping for ...Rf8.} 25. Rf1 {[%emt 0:02:15]} Rf8 {[%emt 0:02:43] Threatens to win with ...Qe7.} 26. Qe6 {[%emt 0:03:48]} (26. Na4 $5 {[%cal Ra4c5]} Rxf7 27. Rxf7 Qxf7 28. Nxc5 bxc5 29. Ne6 $14) 26... Nxe3 {[%emt 0:00:56]} 27. Qxe3 {[%emt 0:00:32]} Qd7 {[%emt 0:11:11]} 28. Qe5+ {[%emt 0:00:47]} Ng7 {[%emt 0:00:02]} 29. e3 {[%emt 0:00:48] Really sharp!} Rxf7 {[%emt 0:04:15]} 30. Rxf7 {[%emt 0:03:33]} Qxf7 {[%emt 0:00:04]} 31. Nd5 {[%emt 0:01:41]} Qe8 $132 {[%emt 0:03:11][%mdl 2048] Black has counterplay} 32. Qf6 {[%emt 0:01:40]} (32. Qxe8+ {simplifies} Nxe8 33. Kf2 Kg7 34. Ke2) 32... Qe4 {[%emt 0:02:21]} 33. Qf7 {[%emt 0:05:24]} Qe8 {[%emt 0:04:18]} 34. Qf4 {[%emt 0:03:16]} Nh5 {[%emt 0:02:53]} 35. Qg4 {[%emt 0:00:33]} Qd8 {[%emt 0:00:15]} 36. Qg2 {[%emt 0:02:25]} Bxd4 {[%emt 0:01:03]} 37. exd4 {[%emt 0:00:01][%mdl 4096] Endgame KQN-KQN} Ng7 {[%emt 0:00:11]} 38. h4 {[%emt 0:01:24]} Qd6 {[%emt 0:01:18]} 39. Qe4 {[%emt 0:01:43]} Ne6 {[%emt 0:01:16]} 40. Kf1 {[%emt 0:00:00]} b5 {[%emt 0:00:00]} (40... Kg8 $11) 41. Nf6 $16 {[%emt 0:23:40] aiming for d5.} Qf4+ {[%emt 0:18:53]} 42. Qxf4 {[%emt 0:00:09]} Nxf4 {[%emt 0:00:02] KN-KN} 43. Kf2 {[%emt 0:02:35] Black must now prevent d5.} Kg7 {[%emt 0:06:10]} 44. Kf3 {[%emt 0:02:21]} Nd3 {[%emt 0:03:36]} 45. Ke4 $2 {[%emt 0:02:25]} (45. d5 $18) 45... Nb4 $11 {[%emt 0:00:06]} 46. d5 {[%emt 0:01:07] a3 would be deadly.} Nxa2 {[%emt 0:01:05]} 47. d6 {[%emt 0:00:40] Intending d7 and mate.} Nb4 {[%emt 0:01:12]} 48. d7 {[%emt 0:02:49]} (48. Nd5 $5 Nc6 $8 49. d7 $11) 48... Nc6 {[%emt 0:00:01]} 49. Kd5 {[%emt 0:00:27]} Nd8 {[%emt 0:00:06]} 50. Kd6 {[%emt 0:01:13] Threatening mate with Kc7.} Kf7 $2 {[%emt 0:03:25][%mdl 8192]} (50... b4 $11) 51. Nd5 $1 {[%emt 0:00:23] Kc7 would kill now.} (51. Nxh7 b4 52. Nf6 b3 $11) 51... a5 {[%emt 0:01:52]} 52. Kc7 {[%emt 0:00:24] White mates.} Ne6+ {[%emt 0:00:25] [#]} 53. Kc8 $1 {[%emt 0:00:10]} ({Inferior is} 53. Kb6 b4 $11) 53... a4 {[%emt 0:00:39]} 54. Nc7 {[%emt 0:00:53]} (54. d8=R $2 {too greedy.} Nxd8 55. Kxd8 a3 $19) 54... Nd8 {[%emt 0:00:35]} 55. Kxd8 {[%emt 0:00:30]} a3 {[%emt 0:00:05]} 56. Kc8 {[%emt 0:00:17]} a2 {[%emt 0:00:04]} 57. d8=Q {[%emt 0:00:06]} ({Worse is} 57. d8=R a1=Q $11) 57... a1=Q {[%emt 0:00:03]} 58. Qe8+ {[%emt 0:01:54]} Kg7 {[%emt 0:00:42] Excellently played by Putrenko!   Weighted Error Value: White=0.12 (very precise) /Black=0.32} 1-0

[Event "14th Margaryan Memorial-IM 2024"]
[Site "Yerevan"]
[Date "2024.01.16"]
[Round "9.10"]
[White "Pashikyan, Rudolf"]
[Black "Lomsadze, Davit"]
[Result "1/2-1/2"]
[ECO "C47"]
[WhiteElo "2287"]
[BlackElo "2253"]
[Annotator "RC"]
[PlyCount "31"]
[EventDate "2024.01.08"]
[EventType "tourn"]
[EventCountry "ARM"]
[SourceTitle "playchess.com"]
[Source "ChessBase"]
[SourceQuality "1"]
[TimeControl "40/5400+30:1800+30"]

1. e4 {[%emt 0:00:04]} e5 {[%emt 0:00:04]} 2. Nf3 {[%emt 0:00:08]} Nc6 {[%emt 0:00:02]} 3. d4 {[%emt 0:00:07]} exd4 {[%emt 0:00:04]} 4. Nxd4 {[%emt 0:00:04]} Nf6 {[%emt 0:00:19]} 5. Nc3 {[%emt 0:00:07]} Bb4 {[%emt 0:00:09]} 6. Nxc6 {[%emt 0:00:04]} bxc6 {[%emt 0:00:02]} 7. Bd3 {[%emt 0:00:08]} d5 {[%emt 0:00:03]} 8. Bd2 {[%emt 0:00:06]} Bxc3 {[%emt 0:02:50]} 9. Bxc3 {[%emt 0:00:16]} dxe4 {[%emt 0:00:09]} 10. Bxf6 {[%emt 0:06:01]} Qxf6 {[%emt 0:00:07]} 11. Bxe4 {[%emt 0:00:04]} Ba6 {[%emt 0:00:19]} 12. Bd3 {[%emt 0:11:19]} Bxd3 {[%emt 0:02:08]} 13. Qxd3 {[%emt 0:00:07]} O-O {[%emt 0:00:01]} 14. O-O {[%emt 0:00:33]} Qxb2 {[%emt 0:00:08]} 15. Qc4 {[%emt 0:00:28]} Qb5 {[%emt 0:00:04]} 16. Qc3 {[%emt 1:18:54]} 1/2-1/2